{"text_format":"1","workbook":"xlsx","n_sheets":3,"sheets":["Konfiguracja"," Druk_Fabryczne"," Druk_Indywidualne"],"not_rendered":{"charts":0,"images":2,"macros":1,"external_links":1,"defined_names":2,"comments":0,"pivot_tables":0},"unopened":[],"bounds":{"document_bytes":16777216,"sheet_cells":100000,"rows_first":2000,"rows_last":500,"rows_between":2000,"halvings":0,"cell_chars":16384,"cell_head_chars":4096},"cells_cut":0,"cells_raw":0,"read":"whole","date_system":"1900"}

{"sheet":"Konfiguracja","index":0,"n_rows":17,"n_cols":34,"rows_kept":17,"cut":false,"hidden":false,"merged":[[1,1,2,33],[6,16,6,22],[3,25,5,25],[3,26,3,28],[5,29,5,33],[4,29,4,33],[3,29,3,33],[5,26,5,28],[4,26,4,28],[7,23,12,23],[7,22,16,22],[13,16,13,18],[13,19,13,21],[7,15,16,15],[16,16,16,18],[16,19,16,21],[8,16,8,18],[8,19,8,21],[14,16,14,18],[14,19,14,21],[15,16,15,18],[15,19,15,21],[11,16,11,18],[11,19,11,21],[12,16,12,18],[12,19,12,21],[7,16,7,21],[9,16,9,18],[9,19,9,21],[10,16,10,18],[10,19,10,21],[7,25,16,25],[7,26,7,31],[15,26,15,28],[15,29,15,31],[16,26,16,28],[16,29,16,31],[7,32,16,32],[7,33,12,33],[8,26,8,28],[8,29,8,31],[9,26,9,28],[9,29,9,31],[10,26,10,28],[10,29,10,31],[11,26,11,28],[11,29,11,31],[12,26,12,28],[12,29,12,31],[13,26,13,28],[13,29,13,31],[14,26,14,28],[14,29,14,31]]}
[]
[null,"Sygnalizacja Centralna SC-16                                                                  \n*KONFIGURATOR WSUWEK*"]
[]
[null,null,null,null,null,null,null,null,null,null,null,null,null,null,null,null,null,null,null,null,null,null,null,null,null,"1.","Obiekt",null,null,"XXX"]
[null,null,null,null,null,null,null,null,null,null,null,null,null,null,null,null,null,null,null,null,null,null,null,null,null,null,"miesiąc_rok",null,null,"01.08.2019"]
[null,null,null,null,null,null,null,null,null,null,null,null,null,null,null,null,null,null,null,null,null,null,null,null,null,null,"nr. fabryczny",null,null,190015]
[]
[null,null,null,null,null,null,null,null,null,null,null,null,null,null,null,"2.","Opisy wsuwek frontu urządzenia ",null,null,null,null,null,"USTAWIENIA FABRYCZNE","DRUKUJ WSUWKI",null,"3.","Opisy wsuwek frontu urządzenia ",null,null,null,null,null,"USTAWIENIA INDYWIDUALNE","DRUKUJ WSUWKI"]
[null,null,null,null,null,null,null,null,null,null,null,null,null,null,null,null,"Opis grupy 1",null,null,"Opis grupy 2 ",null,null,null,null,null,null,"Opis grupy 1",null,null,"Opis grupy 2 "]
[null,null,null,null,null,null,null,null,null,null,null,null,null,null,null,null,{"$f":"' Druk_Fabryczne'!D29","v":"Sygn. 1"},null,null,{"$f":"' Druk_Fabryczne'!E29","v":"Sygn. 9"},null,null,null,null,null,null,"Sygn. 1",null,null,"Sygn. 9"]
[null,null,null,null,null,null,null,null,null,null,null,null,null,null,null,null,{"$f":"' Druk_Fabryczne'!D31","v":"Sygn. 2"},null,null,{"$f":"' Druk_Fabryczne'!E31","v":"Sygn. 10"},null,null,null,null,null,null,"Sygn. 2",null,null,"Sygn. 10"]
[null,null,null,null,null,null,null,null,null,null,null,null,null,null,null,null,"Sygn. 3",null,null,{"$f":"' Druk_Fabryczne'!E33","v":"Sygn. 11"},null,null,null,null,null,null,"Sygn. 3",null,null,"Sygn. 11"]
[null,null,null,null,null,null,null,null,null,null,null,null,null,null,null,null,{"$f":"' Druk_Fabryczne'!D35","v":"Sygn. 4"},null,null,{"$f":"'[1] Q17Druk_Fabryczne'!E35","v":{"$error":"#REF!"}},null,null,null,null,null,null,"Sygn. 4",null,null,"Sygn. 12"]
[null,null,null,null,null,null,null,null,null,null,null,null,null,null,null,null,{"$f":"' Druk_Fabryczne'!D37","v":"Sygn. 5"},null,null,{"$f":"' Druk_Fabryczne'!E37","v":"Sygn. 13"},null,null,null,null,null,null,"Sygn. 5",null,null,"Sygn. 13"]
[null,null,null,null,null,null,null,null,null,null,null,null,null,null,null,null,{"$f":"' Druk_Fabryczne'!D39","v":"Sygn. 6"},null,null,{"$f":"' Druk_Fabryczne'!E39","v":"Sygn. 14"},null,null,null,null,null,null,"Sygn. 6",null,null,"Sygn. 14"]
[null,null,null,null,null,null,null,null,null,null,null,null,null,null,null,null,{"$f":"' Druk_Fabryczne'!D41","v":"Sygn. 7"},null,null,{"$f":"' Druk_Fabryczne'!E41","v":"Sygn. 15"},null,null,null,null,null,null,"Sygn. 7",null,null,"Sygn. 15"]
[null,null,null,null,null,null,null,null,null,null,null,null,null,null,null,null,{"$f":"' Druk_Fabryczne'!D43","v":"Sygn. 8"},null,null,{"$f":"' Druk_Fabryczne'!E43","v":"Sygn. 16"},null,null,null,null,null,null,"Sygn. 8",null,null,"Sygn. 16"]

{"sheet":" Druk_Fabryczne","index":1,"n_rows":43,"n_cols":8,"rows_kept":43,"cut":false,"hidden":true,"merged":[]}
[]
[]
[]
[]
[]
[]
[null,null,null,{"$f":"Konfiguracja!Q9","v":"Opis grupy 1"},{"$f":"Konfiguracja!T9","v":"Opis grupy 2 "},null,{"$f":"Konfiguracja!Q9","v":"Opis grupy 1"},{"$f":"Konfiguracja!T9","v":"Opis grupy 2 "}]
[]
[null,null,null,{"$f":"Konfiguracja!Q10","v":"Sygn. 1"},{"$f":"Konfiguracja!T10","v":"Sygn. 9"},null,{"$f":"Konfiguracja!Q10","v":"Sygn. 1"},{"$f":"Konfiguracja!T10","v":"Sygn. 9"}]
[]
[null,null,null,{"$f":"Konfiguracja!Q11","v":"Sygn. 2"},{"$f":"Konfiguracja!T11","v":"Sygn. 10"},null,{"$f":"Konfiguracja!Q11","v":"Sygn. 2"},{"$f":"Konfiguracja!T11","v":"Sygn. 10"}]
[]
[null,null,null,{"$f":"Konfiguracja!Q12","v":"Sygn. 3"},{"$f":"Konfiguracja!T12","v":"Sygn. 11"},null,{"$f":"Konfiguracja!Q12","v":"Sygn. 3"},{"$f":"Konfiguracja!T12","v":"Sygn. 11"}]
[]
[null,null,null,{"$f":"Konfiguracja!Q13","v":"Sygn. 4"},{"$f":"Konfiguracja!T13","v":{"$error":"#REF!"}},null,{"$f":"Konfiguracja!Q13","v":"Sygn. 4"},{"$f":"Konfiguracja!T13","v":{"$error":"#REF!"}}]
[]
[null,null,null,{"$f":"Konfiguracja!Q14","v":"Sygn. 5"},{"$f":"Konfiguracja!T14","v":"Sygn. 13"},null,{"$f":"Konfiguracja!Q14","v":"Sygn. 5"},{"$f":"Konfiguracja!T14","v":"Sygn. 13"}]
[]
[null,null,null,{"$f":"Konfiguracja!Q15","v":"Sygn. 6"},{"$f":"Konfiguracja!T15","v":"Sygn. 14"},null,{"$f":"Konfiguracja!Q15","v":"Sygn. 6"},{"$f":"Konfiguracja!T15","v":"Sygn. 14"}]
[]
[null,null,null,{"$f":"Konfiguracja!Q16","v":"Sygn. 7"},{"$f":"Konfiguracja!T16","v":"Sygn. 15"},null,{"$f":"Konfiguracja!Q16","v":"Sygn. 7"},{"$f":"Konfiguracja!T16","v":"Sygn. 15"}]
[]
[null,null,null,{"$f":"Konfiguracja!Q17","v":"Sygn. 8"},{"$f":"Konfiguracja!T17","v":"Sygn. 16"},null,{"$f":"Konfiguracja!Q17","v":"Sygn. 8"},{"$f":"Konfiguracja!T17","v":"Sygn. 16"}]
[]
[]
[]
[null,null,null,"Opis grupy 1","Opis grupy 2 ",null,"Opis grupy 1","Opis grupy 2 "]
[]
[null,null,null,"Sygn. 1","Sygn. 9",null,"Sygn. 1","Sygn. 9"]
[]
[null,null,null,"Sygn. 2","Sygn. 10",null,"Sygn. 2","Sygn. 10"]
[]
[null,null,null,"Sygn. 3","Sygn. 11",null,"Sygn. 3","Sygn. 11"]
[]
[null,null,null,"Sygn. 4","Sygn. 12",null,"Sygn. 4","Sygn. 12"]
[]
[null,null,null,"Sygn. 5","Sygn. 13",null,"Sygn. 5","Sygn. 13"]
[]
[null,null,null,"Sygn. 6","Sygn. 14",null,"Sygn. 6","Sygn. 14"]
[]
[null,null,null,"Sygn. 7","Sygn. 15",null,"Sygn. 7","Sygn. 15"]
[]
[null,null,null,"Sygn. 8","Sygn. 16",null,"Sygn. 8","Sygn. 16"]

{"sheet":" Druk_Indywidualne","index":2,"n_rows":43,"n_cols":8,"rows_kept":43,"cut":false,"hidden":true,"merged":[]}
[]
[]
[]
[]
[]
[]
[null,null,null,{"$f":"Konfiguracja!Q9","v":"Opis grupy 1"},{"$f":"Konfiguracja!T9","v":"Opis grupy 2 "},null,{"$f":"Konfiguracja!Q9","v":"Opis grupy 1"},{"$f":"Konfiguracja!T9","v":"Opis grupy 2 "}]
[]
[null,null,null,{"$f":"Konfiguracja!Q10","v":"Sygn. 1"},{"$f":"Konfiguracja!T10","v":"Sygn. 9"},null,{"$f":"Konfiguracja!Q10","v":"Sygn. 1"},{"$f":"Konfiguracja!T10","v":"Sygn. 9"}]
[]
[null,null,null,{"$f":"Konfiguracja!Q11","v":"Sygn. 2"},{"$f":"Konfiguracja!T11","v":"Sygn. 10"},null,{"$f":"Konfiguracja!Q11","v":"Sygn. 2"},{"$f":"Konfiguracja!T11","v":"Sygn. 10"}]
[]
[null,null,null,{"$f":"Konfiguracja!Q12","v":"Sygn. 3"},{"$f":"Konfiguracja!T12","v":"Sygn. 11"},null,{"$f":"Konfiguracja!Q12","v":"Sygn. 3"},{"$f":"Konfiguracja!T12","v":"Sygn. 11"}]
[]
[null,null,null,{"$f":"Konfiguracja!Q13","v":"Sygn. 4"},{"$f":"Konfiguracja!T13","v":{"$error":"#REF!"}},null,{"$f":"Konfiguracja!Q13","v":"Sygn. 4"},{"$f":"Konfiguracja!T13","v":{"$error":"#REF!"}}]
[]
[null,null,null,{"$f":"Konfiguracja!Q14","v":"Sygn. 5"},{"$f":"Konfiguracja!T14","v":"Sygn. 13"},null,{"$f":"Konfiguracja!Q14","v":"Sygn. 5"},{"$f":"Konfiguracja!T14","v":"Sygn. 13"}]
[]
[null,null,null,{"$f":"Konfiguracja!Q15","v":"Sygn. 6"},{"$f":"Konfiguracja!T15","v":"Sygn. 14"},null,{"$f":"Konfiguracja!Q15","v":"Sygn. 6"},{"$f":"Konfiguracja!T15","v":"Sygn. 14"}]
[]
[null,null,null,{"$f":"Konfiguracja!Q16","v":"Sygn. 7"},{"$f":"Konfiguracja!T16","v":"Sygn. 15"},null,{"$f":"Konfiguracja!Q16","v":"Sygn. 7"},{"$f":"Konfiguracja!T16","v":"Sygn. 15"}]
[]
[null,null,null,{"$f":"Konfiguracja!Q17","v":"Sygn. 8"},{"$f":"Konfiguracja!T17","v":"Sygn. 16"},null,{"$f":"Konfiguracja!Q17","v":"Sygn. 8"},{"$f":"Konfiguracja!T17","v":"Sygn. 16"}]
[]
[]
[]
[null,null,null,{"$f":"Konfiguracja!AA9","v":"Opis grupy 1"},{"$f":"Konfiguracja!AD9","v":"Opis grupy 2 "},null,"Opis grupy 1","Opis grupy 2 "]
[]
[null,null,null,{"$f":"Konfiguracja!AA10","v":"Sygn. 1"},{"$f":"Konfiguracja!AD10","v":"Sygn. 9"},null,"Sygn. 1","Sygn. 9"]
[]
[null,null,null,{"$f":"Konfiguracja!AA11","v":"Sygn. 2"},{"$f":"Konfiguracja!AD11","v":"Sygn. 10"},null,"Sygn. 2","Sygn. 10"]
[]
[null,null,null,{"$f":"Konfiguracja!AA12","v":"Sygn. 3"},{"$f":"Konfiguracja!AD12","v":"Sygn. 11"},null,"Sygn. 3","Sygn. 11"]
[]
[null,null,null,{"$f":"Konfiguracja!AA13","v":"Sygn. 4"},{"$f":"Konfiguracja!AD13","v":"Sygn. 12"},null,"Sygn. 4","Sygn. 12"]
[]
[null,null,null,{"$f":"Konfiguracja!AA14","v":"Sygn. 5"},{"$f":"Konfiguracja!AD14","v":"Sygn. 13"},null,"Sygn. 5","Sygn. 13"]
[]
[null,null,null,{"$f":"Konfiguracja!AA15","v":"Sygn. 6"},{"$f":"Konfiguracja!AD15","v":"Sygn. 14"},null,"Sygn. 6","Sygn. 14"]
[]
[null,null,null,{"$f":"Konfiguracja!AA16","v":"Sygn. 7"},{"$f":"Konfiguracja!AD16","v":"Sygn. 15"},null,"Sygn. 7","Sygn. 15"]
[]
[null,null,null,{"$f":"Konfiguracja!AA17","v":"Sygn. 8"},{"$f":"Konfiguracja!AD17","v":"Sygn. 16"},null,"Sygn. 8","Sygn. 16"]